bitfinex/quotes_ETHUSD_20250802
["timestamp","ask_amount","ask_price","bid_price","bid_amount"]
[1754147116158,0.03583201,3488.5,3487.9,0.002]
[1754147116354,3.0,3488.6,3488.0,0.9691]
[1754147116587,3.0,3488.4,3488.0,0.9691]
[1754147116783,4.546,3488.5,3487.9,0.002]
[1754147116784,4.546,3488.5,3488.1,0.9691]
[1754147116984,4.546,3488.5,3488.2,0.9691]
[1754147117188,4.546,3488.5,3488.3,0.4961]
[1754147117357,4.546,3488.5,3488.4,0.4961]
[1754147118868,0.39902238,3489.1,3488.4,0.4961]
[1754147119070,4.546,3489.0,3488.4,0.4961]
[1754147119270,3.0,3488.8,3488.4,0.4961]
[1754147119585,3.0,3488.8,3488.5,0.4961]
[1754147119770,3.0,3488.8,3488.6,0.4961]
[1754147119984,3.0,3488.8,3488.7,0.4961]
[1754147120192,3.0,3488.8,3488.2,0.473]
[1754147120492,0.3975,3489.4,3488.2,0.9691]
[1754147120661,0.49083742,3489.3,3488.3,0.4961]
[1754147120862,3.0,3489.2,3488.3,0.4961]
[1754147121108,0.03582585,3489.1,3488.3,0.4961]
[1754147121661,0.3975,3489.4,3488.3,0.4961]
[1754147121895,3.0,3489.2,3488.4,0.4354]
[1754147122075,1.14573622,3489.5,3488.5,0.4536]
[1754147122561,3.0,3489.3,3488.5,0.4536]
[1754147122794,0.03582483,3489.2,3488.5,0.4536]
[1754147123014,0.03582483,3489.2,3488.1,0.4354]
[1754147123182,0.03582483,3489.2,3488.1,0.889]
[1754147123904,0.55,3489.3,3487.9,0.4374]
[1754147124069,3.0,3489.0,3488.2,0.4536]
[1754147124504,1.10745569,3489.4,3488.3,0.4354]
[1754147124707,7.546,3489.3,3488.4,0.4536]
[1754147125009,3.0,3489.2,3488.5,0.4354]
[1754147125327,4.16534557,3489.2,3488.6,0.4536]
[1754147126499,4.2011704,3489.2,3488.6,0.4536]
[1754147127142,4.16534557,3489.2,3488.6,0.4536]
[1754147127482,0.03582585,3489.1,3488.6,0.4536]
[1754147127703,0.03582585,3489.1,3487.9,0.002]
[1754147127704,0.43332585,3489.1,3488.2,0.4536]
[1754147127907,0.91446714,3489.0,3488.2,0.4536]
[1754147128081,4.546,3488.9,3488.2,0.4536]
[1754147129091,4.546,3488.9,3488.2,0.889]
[1754147129664,4.546,3488.9,3488.2,0.4354]
[1754147129870,4.546,3488.9,3488.3,0.4536]
[1754147133793,4.545,3488.8,3488.4,0.4354]
[1754147134123,4.545,3488.8,3487.9,0.002]
[1754147134124,1.10745569,3489.4,3488.5,0.889]
[1754147134306,4.545,3489.3,3488.6,0.889]
[1754147134608,0.3975,3490.9,3488.7,0.889]
[1754147134820,0.2874,3491.8,3488.7,0.889]
[1754147134821,6.894,3491.6,3489.8,9.40702355]
[1754147135026,4.545,3491.5,3489.9,0.889]
[1754147135210,3.0,3491.3,3489.9,1.02960236]
[1754147135388,0.4044,3491.2,3490.0,0.889]
[1754147135722,0.4044,3491.2,3490.0,0.4536]
[1754147135930,0.03580533,3491.1,3490.0,0.4036]
[1754147136129,0.03580635,3491.0,3490.0,0.4036]
[1754147136435,0.4536,3490.7,3489.0,12.55022355]
[1754147136728,4.545,3490.9,3489.0,12.55022355]
[1754147136729,5.38067046,3490.6,3489.3,0.4354]
[1754147136887,4.545,3490.6,3489.3,0.4354]
[1754147137996,4.545,3490.6,3489.4,0.4536]
[1754147138395,4.545,3490.6,3489.5,0.4354]
[1754147138697,4.545,3490.6,3489.6,9.88057407]
[1754147138917,4.545,3490.6,3489.7,1.92059741]
[1754147139229,4.545,3490.6,3489.8,0.889]
[1754147139428,4.545,3490.6,3489.9,0.889]
[1754147139593,4.545,3490.6,3489.9,0.4354]
[1754147139789,0.03581148,3490.5,3489.6,0.4354]
[1754147140028,0.45808115,3490.5,3489.6,0.889]
[1754147140942,0.03581251,3490.4,3489.6,0.889]
[1754147141997,0.45808115,3490.5,3489.6,0.889]
[1754147142228,4.543,3490.5,3489.7,0.889]
[1754147142428,4.543,3490.5,3489.7,0.4354]
[1754147142630,4.543,3490.5,3489.8,0.90894864]
[1754147142943,4.543,3490.5,3489.9,1.92059722]
[1754147143144,4.543,3490.5,3490.0,0.889]
[1754147143642,4.543,3490.5,3489.9,1.03159722]
[1754147143643,4.543,3490.5,3490.1,0.889]
[1754147143845,4.543,3490.5,3490.2,0.889]
[1754147144006,4.543,3490.5,3490.3,0.4536]
[1754147144342,4.543,3490.5,3490.4,0.4536]
[1754147145751,0.001,3490.9,3490.4,0.889]
[1754147146002,3.001,3490.9,3490.5,0.4354]
[1754147146133,3.001,3490.9,3490.1,9.40702355]
[1754147146339,3.001,3490.9,3490.6,0.4536]
[1754147146739,3.001,3490.9,3490.5,0.4354]
[1754147147056,0.001,3490.9,3490.7,0.4536]
[1754147147213,0.001,3490.9,3490.8,0.4536]
[1754147147721,0.001,3490.9,3490.8,0.889]
[1754147150327,0.001,3490.9,3490.8,0.4536]
[1754147150761,0.001,3490.9,3490.1,0.4536]
[1754147151081,0.001,3490.9,3490.5,0.889]
[1754147151580,0.001,3490.9,3490.6,0.4536]
[1754147151798,0.001,3490.9,3490.5,0.4536]
[1754147152081,0.001,3490.9,3490.2,0.4822]
[1754147152282,0.3975,3490.8,3489.7,0.9149]
[1754147152573,4.541,3490.7,3489.7,0.9149]
[1754147152730,5.04064,3490.7,3489.7,0.9149]
[1754147152925,5.04064,3490.7,3489.8,0.4822]
[1754147153164,4.541,3490.6,3489.8,0.9149]
[1754147155173,0.001,3490.9,3489.9,0.9149]
[1754147155465,0.001,3490.9,3489.2,3.0]
[1754147155466,4.541,3490.7,3490.1,9.40702355]
[1754147155757,0.001,3490.9,3490.2,1.94908666]
[1754147156160,0.001,3490.9,3490.2,1.05412635]
[1754147156357,0.001,3490.9,3490.3,0.9149]
[1754147156861,0.001,3490.9,3490.4,0.4822]
[1754147157374,0.001,3490.9,3490.5,0.4327]
[1754147157869,0.001,3490.9,3490.4,1.13561102]
[1754147158075,0.001,3490.9,3490.6,0.9149]
[1754147158576,0.001,3490.9,3490.5,0.4822]
[1754147158739,0.001,3490.9,3490.2,0.4822]
[1754147159277,0.4552,3490.9,3490.0,0.002]
[1754147160364,0.03580841,3490.8,3490.0,0.002]
[1754147160741,0.5121,3490.9,3490.0,0.002]
[1754147160942,0.4552,3490.9,3490.0,0.002]
[1754147161174,0.83937,3490.8,3490.0,0.002]
[1754147161484,0.03580943,3490.7,3490.0,0.002]
[1754147161653,0.4544,3490.6,3490.0,0.002]
[1754147162174,3.0,3490.4,3490.0,0.002]
[1754147162654,0.3975,3490.3,3490.0,0.002]
[1754147162855,0.79375,3490.2,3490.0,0.002]
[1754147163857,4.54,3490.4,3490.1,0.9149]
[1754147164051,0.3975,3491.2,3490.2,0.9149]
[1754147164255,4.54,3490.5,3490.2,0.9149]
[1754147164469,4.54,3490.5,3490.0,0.002]
[1754147164470,3.0,3491.5,3490.3,0.9149]
[1754147164646,4.54,3490.6,3490.3,0.9149]
[1754147164852,4.54,3490.6,3490.4,0.9149]
[1754147165053,7.54,3490.6,3490.5,0.4822]
[1754147165349,4.54,3490.6,3490.5,0.4822]
[1754147165769,4.9941,3490.6,3490.0,0.002]
[1754147166081,4.54,3490.6,3490.0,0.4842]
[1754147166489,4.54,3490.6,3490.0,0.002]
[1754147166782,0.49021148,3490.5,3490.0,0.002]
[1754147167146,0.3975,3490.4,3490.0,0.002]
[1754147167382,4.39,3490.6,3490.0,0.002]
[1754147167583,0.439,3490.5,3490.0,0.002]
[1754147168287,4.54,3490.5,3490.1,0.9149]
[1754147168445,0.03581251,3490.4,3490.0,0.002]
[1754147168650,0.3975,3490.4,3490.0,0.002]
[1754147169684,3.0,3490.4,3490.0,0.002]
[1754147169873,0.754,3490.3,3490.0,0.002]
[1754147171005,4.54,3490.2,3490.0,0.002]
[1754147171785,4.54,3490.3,3490.1,0.4822]
[1754147172085,7.3484,3491.6,3490.2,0.4327]
[1754147172086,4.54,3490.5,3490.2,0.4327]
[1754147172287,4.54,3490.5,3490.0,0.002]
[1754147172495,4.54,3490.5,3490.3,0.9149]
[1754147172795,4.54,3490.5,3490.4,0.4822]
[1754147174159,4.54,3490.5,3490.4,0.9149]
[1754147174593,0.3975,3491.4,3490.4,0.9149]
[1754147174758,4.54,3490.7,3490.4,0.9149]
[1754147174958,4.54,3490.7,3490.4,0.4822]
[1754147175159,4.54,3490.7,3490.1,0.4327]
[1754147175372,4.54,3490.7,3490.2,0.4822]
[1754147175663,0.3975,3491.4,3490.0,0.002]
[1754147175664,4.54,3490.6,3490.3,0.9149]
[1754147175862,4.54,3490.6,3490.4,0.9149]
[1754147176097,3.0,3491.5,3490.5,0.9149]
[1754147176298,4.54,3490.9,3490.6,0.9149]
[1754147176598,4.54,3490.9,3490.7,0.9149]
[1754147176756,4.54,3490.9,3490.8,0.9149]
[1754147178024,4.54,3490.9,3490.3,0.4822]
[1754147178312,4.994,3490.9,3490.0,0.4842]
[1754147178601,4.54,3490.9,3490.0,0.4842]
[1754147178959,4.57580738,3490.9,3490.0,0.4842]
[1754147179224,3.4544,3490.8,3490.0,0.002]
[1754147179708,3.3975,3490.8,3490.0,0.002]
[1754147179868,4.19694,3490.8,3490.0,0.002]
[1754147180064,3.79944,3490.8,3490.0,0.002]
[1754147180314,3.79944,3490.8,3490.1,0.4822]
[1754147181102,0.79944,3490.8,3490.1,0.4822]
[1754147181380,4.539,3490.7,3490.1,0.4822]
[1754147183401,4.539,3490.6,3490.1,0.9567]
[1754147183697,0.001,3490.8,3490.2,0.93]
[1754147183899,0.001,3490.8,3490.1,9.40702355]
[1754147184106,0.001,3490.8,3490.2,1.87090236]
[1754147184470,0.001,3490.8,3490.2,1.41540236]
[1754147184666,0.001,3490.8,3490.0,0.002]
[1754147184901,0.001,3490.8,3490.1,0.4555]
[1754147185199,3.001,3490.8,3490.0,0.002]
[1754147186406,0.3975,3490.7,3490.0,0.002]
[1754147186576,0.79954,3490.6,3490.0,0.002]
[1754147189468,3.001,3490.8,3490.0,0.002]
[1754147189696,0.001,3490.8,3490.1,0.93]
[1754147189871,0.001,3490.8,3490.2,0.93]
[1754147190393,0.001,3490.8,3490.3,0.93]
[1754147190607,0.001,3490.8,3490.4,1.03370236]
[1754147190901,0.001,3490.8,3490.4,1.96370236]
[1754147191082,0.001,3490.8,3490.4,1.03370236]
[1754147191285,0.001,3490.8,3490.5,0.93]
[1754147191681,0.001,3490.8,3490.6,0.93]
[1754147192078,0.001,3490.8,3490.7,0.4555]
[1754147192278,0.001,3490.8,3490.6,0.4745]
[1754147192279,0.001,3490.8,3490.6,0.4555]
[1754147193509,0.001,3490.8,3490.1,0.4555]
[1754147194474,0.001,3490.8,3490.2,0.4745]
[1754147194811,4.538,3490.8,3490.2,0.4745]
[1754147195217,4.538,3490.8,3490.3,0.4555]
[1754147195412,4.538,3490.8,3490.0,0.002]
[1754147195615,4.538,3490.8,3490.4,0.93]
[1754147195916,4.538,3490.8,3490.5,0.93]
[1754147196081,4.538,3490.8,3490.0,0.02194009]
[1754147196277,4.538,3490.8,3490.1,0.93]
[1754147196520,0.03580943,3490.7,3490.0,0.002]
[1754147196685,0.3975,3490.7,3490.0,0.002]
[1754147197045,3.3975,3490.7,3490.0,0.002]
[1754147198822,3.0,3490.7,3490.0,0.4575]
[1754147200032,0.3975,3490.6,3490.0,0.002]
[1754147200188,1.23654,3490.6,3490.0,0.002]
[1754147201722,3.0569,3490.7,3490.0,0.002]
[1754147201723,0.4549,3490.8,3490.0,0.002]
[1754147201887,4.536,3490.5,3490.0,0.4575]
[1754147202088,4.536,3490.5,3490.0,0.002]
[1754147203644,4.536,3490.5,3490.1,0.4555]
[1754147205516,4.536,3490.5,3490.0,0.4765]
[1754147205517,4.536,3490.5,3490.2,0.93]
[1754147205770,0.001,3490.8,3490.3,0.93]
[1754147205975,0.001,3490.8,3490.0,0.002]
[1754147205976,0.001,3490.8,3490.4,0.93]
[1754147206118,0.001,3490.8,3490.1,9.40702355]
[1754147206319,0.001,3490.8,3490.2,1.87090236]
[1754147206718,0.001,3490.8,3490.3,0.93]
[1754147207120,0.001,3490.8,3490.2,0.94090236]
[1754147207315,0.001,3490.8,3490.3,0.93]
[1754147207858,0.001,3490.8,3490.4,0.93]
[1754147208054,0.001,3490.8,3490.4,2.05779259]
[1754147208262,0.001,3490.8,3490.5,0.93]
[1754147208759,0.001,3490.8,3490.4,1.12779259]
[1754147208959,0.001,3490.8,3490.6,0.93]
[1754147209359,0.001,3490.8,3490.4,1.12779259]
[1754147209524,0.001,3490.8,3490.7,0.93]
[1754147211552,0.001,3490.8,3490.7,1.13577926]
[1754147214670,0.001,3490.8,3490.7,0.20577926]
[1754147214869,0.001,3490.8,3490.3,0.4805]
[1754147215177,0.001,3490.8,3490.7,0.4805]
[1754147215876,0.001,3490.8,3490.7,0.9124]
[1754147216635,0.001,3491.2,3490.8,0.55]
[1754147216840,0.001,3491.3,3491.0,0.55]
[1754147217062,0.001,3491.3,3491.2,9.40702355]
[1754147217685,0.001,3491.3,3491.2,10.31942355]
[1754147218888,0.001,3491.3,3491.2,0.4805]
[1754147220085,0.001,3491.3,3491.2,1.4624]
[1754147220247,0.001,3491.3,3491.2,3.0144585]
[1754147220776,0.001,3491.3,3491.2,2.30133489]
[1754147221504,0.001,3491.3,3491.2,2.3212585]
[1754147221866,3.0,3493.0,3491.2,5.3212585]
[1754147222069,0.551,3493.6,3492.3,9.40702355]
[1754147222070,0.001,3493.6,3492.3,9.40702355]
[1754147222269,0.001,3493.6,3492.4,0.93229457]
[1754147222466,0.001,3493.6,3492.5,0.93229326]
[1754147222707,0.4564,3493.5,3492.5,0.4805]
[1754147222901,0.09468175,3493.4,3492.2,5.0105]
[1754147223049,0.0589,3493.4,3492.2,5.0105]
[1754147223249,0.3975,3493.3,3492.2,0.4805]
[1754147223476,0.0946838,3493.2,3491.8,0.4805]
[1754147223686,0.4564,3493.1,3491.8,1.02474]
[1754147223900,0.4564,3493.4,3491.9,0.93230186]
[1754147224111,0.4564,3493.4,3491.9,0.01990186]
[1754147224397,0.001,3493.6,3492.3,9.40702355]
[1754147224594,0.001,3493.6,3492.8,9.40702355]
[1754147224810,0.001,3493.6,3492.9,0.94070236]
[1754147224986,0.001,3493.6,3492.9,1.85310236]
[1754147225296,0.001,3493.6,3493.0,0.93228374]
[1754147225469,0.001,3493.6,3493.0,0.9124]
[1754147225677,0.001,3493.6,3493.1,0.4805]
[1754147226295,0.001,3493.6,3493.2,0.9124]
[1754147226676,0.001,3493.6,3493.3,0.4805]
[1754147227200,0.001,3493.6,3493.0,0.4805]
[1754147227488,0.001,3493.6,3493.2,0.9124]
[1754147227691,0.001,3493.6,3493.2,0.4805]
[1754147228637,0.3985,3493.6,3492.7,0.4805]
[1754147228954,0.001,3493.6,3492.7,0.4805]
[1754147229399,0.001,3493.6,3492.3,0.9819]
[1754147229556,0.001,3493.6,3492.8,0.4805]
[1754147230186,0.001,3493.6,3492.9,0.4319]
[1754147230567,4.528,3493.5,3492.8,0.4805]
[1754147230767,4.528,3493.5,3492.5,0.4805]
[1754147230994,3.4564,3493.4,3492.3,0.4805]
[1754147231360,3.4564,3493.4,3491.8,0.4805]
[1754147231361,4.96028278,3493.3,3491.8,0.4805]
[1754147231601,30.0,3493.1,3491.3,0.4319]
[1754147231758,10.37818585,3493.0,3491.5,0.4805]
[1754147231957,7.527,3492.9,3491.6,0.4319]
[1754147232164,0.0357879,3492.8,3491.7,0.4805]
[1754147232406,1.94691879,3492.7,3491.7,0.4805]
[1754147232659,1.94691879,3492.7,3489.5,0.4805]
[1754147232660,0.4564,3492.6,3491.3,0.4805]
[1754147232864,0.0589,3492.5,3491.3,0.4805]
[1754147233062,0.3975,3492.4,3491.3,0.4805]
[1754147233961,1.49051879,3492.7,3491.3,0.93231416]
[1754147234159,4.527,3492.6,3491.4,1.94633377]
[1754147234396,4.527,3492.6,3491.5,0.9124]
[1754147234612,4.527,3492.6,3491.5,0.4319]
[1754147234894,4.527,3492.6,3491.6,0.4805]
[1754147235581,3.4564,3492.5,3491.1,0.4805]
[1754147235758,0.834132,3492.4,3491.1,0.4805]
[1754147235961,0.4564,3492.3,3491.1,0.4805]
[1754147236205,0.09469405,3492.2,3491.1,0.4805]
[1754147236413,0.3975,3492.1,3491.1,0.4805]
[1754147236588,0.0357961,3492.0,3491.1,0.4805]
[1754147236790,0.0589,3492.0,3490.9,0.4319]
[1754147237011,0.0589,3492.0,3491.0,0.4805]
[1754147237225,0.3975,3492.1,3491.0,0.4805]
[1754147238244,0.0357961,3492.0,3490.8,0.002]
[1754147238446,30.0,3491.9,3490.8,0.002]
[1754147238735,0.79834,3492.4,3490.8,0.002]
[1754147238736,7.88744522,3491.8,3490.8,0.002]
[1754147238903,4.9834,3491.8,3490.8,0.002]
[1754147239107,0.03579918,3491.7,3490.8,0.002]
[1754147240996,0.4564,3491.6,3490.8,0.002]
[1754147241493,4.527,3491.5,3490.8,0.002]
[1754147241951,3.3975,3492.0,3490.9,0.4635]
[1754147242110,3.0,3491.8,3490.9,0.9321]
[1754147242443,3.0,3491.8,3491.0,0.4635]
[1754147243309,4.528,3491.7,3491.0,0.4635]
[1754147243601,3.0,3492.0,3491.0,0.4635]
[1754147243802,0.3975,3492.3,3491.1,0.4686]
[1754147244020,3.0,3492.1,3491.1,0.4686]
[1754147244333,0.79255,3492.0,3491.2,0.4635]
[1754147246019,3.0,3491.8,3491.3,0.4686]
[1754147246264,3.0,3491.8,3491.4,0.9321]
[1754147246446,3.0,3491.8,3491.4,0.4686]
[1754147246603,3.0,3491.8,3491.5,0.4635]
[1754147247565,0.43329918,3491.7,3490.8,0.002]
[1754147247722,1.25242992,3491.7,3491.1,0.002]
[1754147247922,6.888,3492.4,3491.1,0.4655]
[1754147247923,4.527,3491.6,3491.1,0.4655]
[1754147248122,4.527,3491.5,3491.2,0.9321]
[1754147248368,4.527,3491.5,3491.1,0.002]
[1754147248551,4.527,3491.5,3491.3,0.4635]
[1754147248753,3.0589,3492.3,3491.2,0.4686]
[1754147249060,5.56144,3492.2,3491.4,0.4635]
[1754147249760,1.03444,3492.2,3491.4,0.4635]
[1754147249926,4.527,3492.1,3491.5,0.4686]
[1754147250239,4.527,3492.0,3491.6,0.4635]
[1754147250422,4.527,3491.9,3491.6,0.4635]
[1754147250624,3.0589,3492.8,3491.2,0.4686]
[1754147250824,5.91919,3492.7,3491.7,0.4635]
[1754147251453,4.527,3492.6,3491.7,0.4635]
[1754147251653,1.39219,3492.7,3491.7,0.4635]
[1754147251953,3.0,3492.4,3491.7,0.4635]
[1754147252369,0.03579303,3492.3,3491.4,0.4635]
[1754147252521,0.83771233,3492.3,3491.4,0.4635]
[1754147252726,0.8019193,3492.3,3491.4,0.4635]
[1754147253455,4.527,3492.2,3491.5,0.4686]
[1754147253679,4.527,3492.2,3491.6,0.4635]
[1754147253873,0.99469,3492.7,3491.6,0.4635]
[1754147254040,3.0,3492.5,3491.7,0.4686]
[1754147254378,3.0,3492.5,3491.8,0.4635]
[1754147255048,4.527,3492.4,3491.8,0.4635]
[1754147256031,4.526,3492.3,3491.8,0.4635]
[1754147256341,4.526,3492.3,3491.6,0.4635]
[1754147256342,4.9235,3492.3,3491.6,0.4635]
[1754147256662,0.3975,3492.3,3491.6,0.4635]
[1754147256868,4.526,3492.2,3491.6,0.4635]
[1754147257629,4.526,3492.2,3491.3,0.4635]
[1754147257831,3.49219508,3492.1,3491.1,0.002]
[1754147258063,0.49219508,3492.1,3491.1,0.002]
[1754147258361,3.0,3491.9,3491.2,0.4635]
[1754147258561,3.79824,3491.9,3491.1,0.002]
[1754147258732,0.79824,3491.9,3491.1,0.002]
[1754147258927,4.526,3491.8,3491.1,0.4655]
[1754147259164,4.526,3491.8,3491.1,0.002]
[1754147259349,3.49219918,3491.7,3491.1,0.002]
[1754147259864,0.4564,3491.6,3491.1,0.002]
[1754147260172,0.58580123,3491.5,3491.1,0.002]
[1754147260532,0.90510898,3491.4,3491.1,0.002]
[1754147260954,0.55,3491.2,3491.1,0.002]
[1754147261145,5.1118043,3491.2,3491.1,0.002]
[1754147261344,1.0422043,3491.2,3491.1,0.002]
[1754147261550,5.5682043,3491.2,3491.1,0.002]
[1754147261862,6.4524423,3491.2,3491.1,0.002]
[1754147262473,9.4524423,3491.2,3491.1,0.002]
[1754147265354,4.9264423,3491.2,3491.1,0.002]
[1754147265591,9.4524423,3491.2,3491.1,0.002]
[1754147265887,4.8675423,3491.2,3491.1,0.002]
[1754147266051,7.526,3491.2,3491.1,0.002]
[1754147266653,7.9824,3491.2,3491.1,0.002]
[1754147266851,8.5324,3491.2,3491.1,0.002]
[1754147267479,4.0064,3491.2,3491.1,0.002]
[1754147267678,8.5692043,3491.2,3491.1,0.002]
[1754147267880,39.41225163,3491.2,3491.1,0.002]
[1754147269087,39.35335163,3491.2,3491.1,0.002]
[1754147269606,34.88525163,3491.2,3491.1,0.002]
[1754147269758,39.41125163,3491.2,3491.1,0.002]
[1754147271014,39.52614263,3491.2,3491.1,0.002]
[1754147271664,35.3206153,3491.2,3491.1,0.002]
[1754147271868,39.52614263,3491.2,3491.1,0.002]
[1754147272308,35.00014263,3491.2,3491.1,0.002]
[1754147272602,39.52614263,3491.2,3491.1,0.002]
[1754147273495,34.94124263,3491.2,3491.1,0.002]
[1754147273694,39.46724263,3491.2,3491.1,0.002]
[1754147273924,39.52614263,3491.2,3491.1,0.002]
[1754147274587,5.00014263,3491.2,3491.1,0.002]
[1754147274797,38.588391,3491.2,3491.1,0.002]
[1754147275014,38.190891,3491.2,3491.1,0.002]
[1754147275336,33.664891,3491.2,3491.1,0.002]
[1754147275543,38.190891,3491.2,3491.1,0.002]
[1754147276039,33.114891,3491.2,3491.1,0.002]
[1754147276210,4.526,3491.2,3491.1,0.4731]
[1754147276405,3.0,3491.2,3491.1,0.4731]
[1754147276728,0.114872,3491.5,3491.1,0.9045]
[1754147276894,4.526,3491.4,3491.1,0.9045]
[1754147277229,3.0,3491.3,3491.2,0.9025]
[1754147277424,3.0,3491.3,3491.2,0.4314]
[1754147277656,3.0,3491.5,3491.2,0.4314]
[1754147277812,4.526,3491.4,3491.2,0.4314]
[1754147277993,3.0,3491.5,3491.3,0.4314]
[1754147278324,4.526,3491.4,3491.3,0.4711]
[1754147278505,3.0,3491.5,3491.1,0.002]
[1754147278700,3.0,3491.3,3491.2,0.4711]
[1754147279522,3.0,3491.3,3491.2,0.9025]
[1754147279720,3.0,3491.5,3491.2,0.9025]
[1754147279925,4.526,3491.3,3491.2,0.4314]
[1754147280298,3.0,3491.2,3491.1,0.002]
[1754147281759,4.526,3491.2,3491.1,0.9045]
[1754147281953,4.526,3491.2,3491.1,0.4731]
[1754147282556,3.0,3491.5,3491.1,0.9045]
[1754147282857,0.001,3491.7,3491.2,0.9025]
[1754147283152,4.525,3491.6,3491.2,0.9025]
[1754147283332,4.525,3491.6,3491.3,0.9025]
[1754147283534,0.001,3491.7,3491.4,0.9025]
[1754147283721,0.001,3491.7,3491.5,0.9025]
[1754147283921,4.525,3491.6,3491.1,9.40902355]
[1754147284143,4.525,3491.6,3491.2,0.94090236]
[1754147284547,4.525,3491.6,3491.3,0.9025]
[1754147284757,4.525,3491.6,3491.4,0.9025]
[1754147285059,4.525,3491.6,3491.1,9.40902355]
[1754147285060,4.525,3491.6,3491.5,0.9025]
[1754147285435,4.525,3491.6,3491.5,0.4711]
[1754147286557,4.9776,3491.6,3491.1,0.4731]
[1754147286775,4.9776,3491.6,3491.2,0.4711]
[1754147286985,4.525,3491.6,3491.2,0.4314]
[1754147287157,4.525,3491.6,3491.3,0.4711]
[1754147287326,4.525,3491.6,3491.2,0.4314]
[1754147287526,4.525,3491.6,3491.3,0.4711]
[1754147287826,4.525,3491.6,3491.4,0.4711]
[1754147288021,3.4526,3491.5,3491.1,0.002]
[1754147288226,0.03580225,3491.4,3491.1,0.002]
[1754147288425,3.48840123,3491.5,3491.1,0.002]
[1754147288662,0.80144012,3491.4,3491.1,0.002]
[1754147288953,0.80144012,3491.4,3491.1,0.4731]
[1754147289180,3.4526,3491.5,3491.2,0.9025]
[1754147289379,3.48840123,3491.5,3491.2,0.4711]
[1754147289522,3.4526,3491.5,3491.1,0.002]
[1754147289724,3.48840123,3491.5,3491.3,0.4711]
[1754147289924,3.4526,3491.5,3491.3,0.4711]
[1754147290327,3.4526,3491.5,3491.1,0.4334]
[1754147290527,3.4526,3491.5,3491.1,0.9045]
[1754147290760,3.4526,3491.5,3491.1,0.4334]
[1754147290924,3.4526,3491.5,3491.2,0.4711]
[1754147291328,3.48840123,3491.5,3491.2,0.4711]
[1754147291761,0.48840123,3491.5,3491.2,0.4711]
[1754147291948,4.524,3491.4,3491.3,0.4711]
[1754147292151,7.525,3491.4,3491.3,0.9025]
[1754147293268,0.001,3491.4,3491.3,0.9025]
[1754147293472,4.524,3491.4,3491.3,0.9025]
[1754147294126,0.001,3491.4,3491.3,0.9025]
[1754147294333,4.524,3491.4,3491.3,0.9025]
[1754147295561,0.001,3491.4,3491.3,0.9025]
[1754147295734,4.524,3491.4,3491.3,0.9025]
[1754147296253,0.001,3491.4,3491.3,0.9025]
[1754147296500,4.524,3491.4,3491.3,0.9025]
[1754147297066,0.001,3491.4,3491.3,0.9025]
[1754147297295,4.524,3491.4,3491.3,0.9025]
[1754147298087,0.001,3491.4,3491.3,0.9025]
[1754147301995,0.001,3491.4,3491.3,1.93365236]
[1754147304204,0.001,3491.4,3491.3,0.9025]
[1754147305407,0.001,3491.4,3491.1,0.002]
[1754147305911,0.001,3491.4,3491.2,0.4914]
[1754147306213,0.001,3491.4,3491.3,0.4914]
[1754147306715,0.001,3491.4,3491.1,0.4934]
[1754147306878,0.001,3491.4,3491.2,0.4914]
[1754147307314,0.001,3491.4,3491.1,0.4563]
[1754147307489,0.001,3491.4,3491.3,0.4914]
[1754147308310,0.001,3491.4,3491.3,0.9457]
[1754147310913,0.001,3491.4,3491.1,0.002]
[1754147311113,0.001,3491.4,3491.2,0.4914]
[1754147311410,0.001,3491.4,3491.1,0.002]
[1754147312208,0.03680225,3491.4,3491.1,0.002]
[1754147312408,0.3975,3491.3,3491.1,0.002]
[1754147312605,0.49220328,3491.3,3491.1,0.002]
[1754147312810,0.4564,3491.2,3491.1,0.002]
[1754147314629,3.45678023,3491.4,3491.1,0.002]
[1754147315158,0.45678023,3491.4,3491.1,0.002]
[1754147315434,4.519,3491.3,3491.2,0.4914]
[1754147315949,4.519,3491.3,3491.2,0.9457]
[1754147316495,0.001,3491.4,3491.2,0.9457]
[1754147316699,4.519,3491.3,3491.1,0.002]
[1754147317332,4.519,3491.3,3491.2,0.9457]
[1754147317631,4.519,3491.3,3491.2,0.4914]
[1754147318005,4.519,3491.3,3491.1,0.002]
[1754147318544,4.519,3491.3,3491.2,0.4914]
[1754147319746,4.518,3491.3,3491.2,0.9457]
[1754147320505,4.518,3491.3,3491.1,0.002]
[1754147321143,4.518,3491.3,3491.1,0.4934]
[1754147322344,4.518,3491.3,3491.1,0.002]
[1754147322916,4.518,3491.3,3491.2,0.4914]
[1754147323646,4.517,3491.3,3491.2,0.9457]